bitfinex/quotes_BTCUSD_20230901
["timestamp","ask_amount","ask_price","bid_price","bid_amount"]
[1693604967017,0.072,25787.0,25786.0,0.1205]
[1693604967844,0.036,25787.0,25786.0,0.1205]
[1693604968242,0.036,25787.0,25786.0,0.1245]
[1693604968486,0.072,25787.0,25786.0,0.1275]
[1693604969785,0.072,25787.0,25786.0,0.51458678]
[1693604974422,0.072,25787.0,25786.0,0.70847678]
[1693604977870,0.072,25787.0,25786.0,0.93344583]
[1693604978036,0.072,25787.0,25786.0,0.73955583]
[1693604978238,0.072,25787.0,25786.0,0.93344583]
[1693604979468,0.072,25787.0,25786.0,1.27344583]
[1693604983038,0.072,25787.0,25786.0,1.07955583]
[1693604986829,0.072,25787.0,25786.0,0.85458678]
[1693604987035,0.072,25787.0,25786.0,1.12899457]
[1693604988069,0.072,25787.0,25786.0,1.14899457]
[1693604989062,0.07194,25787.0,25786.0,1.25242283]
[1693604989672,0.036,25787.0,25786.0,0.97401504]
[1693604989927,0.054,25787.0,25786.0,0.97601504]
[1693604990320,0.054,25787.0,25786.0,0.97301504]
[1693604990321,0.018,25787.0,25786.0,0.97301504]
[1693604990538,0.018,25787.0,25786.0,1.04231504]
[1693604990698,0.039,25787.0,25786.0,1.15068343]
[1693604990901,0.018,25787.0,25786.0,1.15312343]
[1693604991172,0.018,25787.0,25786.0,1.15306343]
[1693604991385,0.00098629,25792.0,25790.0,0.06]
[1693604991594,0.00098629,25792.0,25791.0,0.50758678]
[1693604991795,0.2808,25793.0,25791.0,0.50758678]
[1693604991796,0.1834,25793.0,25791.0,0.80758678]
[1693604992006,0.1834,25793.0,25792.0,0.1205]
[1693604992210,0.1834,25793.0,25792.0,0.4205]
[1693604992683,0.19997174,25793.0,25792.0,0.80758678]
[1693604993291,0.19997174,25793.0,25792.0,0.80858678]
[1693604993292,0.23397174,25793.0,25792.0,0.80858678]
[1693604993495,0.25297174,25793.0,25792.0,0.81058678]
[1693604996323,0.25297174,25793.0,25792.0,1.05203296]
[1693604998277,0.08927174,25793.0,25792.0,1.05203296]
[1693604999754,0.0527,25793.0,25792.0,1.05203296]
[1693605003240,0.0527,25793.0,25792.0,1.11203296]
[1693605003437,0.0527,25793.0,25792.0,1.13203296]
[1693605006172,0.0527,25793.0,25792.0,1.27253296]
[1693605006360,0.0527,25793.0,25792.0,1.46635296]
[1693605006497,0.0527,25793.0,25792.0,1.28833504]
[1693605007133,0.037158,25793.0,25792.0,1.69543504]
[1693605007376,0.037158,25793.0,25792.0,1.77301504]
[1693605007377,0.034057,25793.0,25792.0,1.77301504]
[1693605007583,0.034057,25793.0,25792.0,1.77307504]
[1693605007729,0.034057,25793.0,25792.0,1.77907504]
[1693605007928,0.034057,25793.0,25792.0,1.79053504]
[1693605008130,0.033439,25793.0,25792.0,1.80499504]
[1693605008387,0.033439,25793.0,25792.0,1.84041752]
[1693605008582,0.033439,25793.0,25792.0,1.84827752]
[1693605008794,0.033439,25793.0,25792.0,1.85619752]
[1693605008987,0.033439,25793.0,25792.0,1.85637752]
[1693605009164,0.033316,25793.0,25792.0,1.85469752]
[1693605009379,0.033316,25793.0,25792.0,1.99869752]
[1693605009581,0.033316,25793.0,25792.0,2.00153752]
[1693605009582,0.019316,25793.0,25792.0,2.00153752]
[1693605009781,0.019316,25793.0,25792.0,2.00765752]
[1693605009986,0.019316,25793.0,25792.0,2.04253752]
[1693605009987,0.003316,25793.0,25792.0,2.04253752]
[1693605010191,0.017998,25794.0,25793.0,0.58931074]
[1693605010424,0.017998,25794.0,25793.0,1.53739752]
[1693605010627,0.017998,25794.0,25793.0,1.65373752]
[1693605010848,0.017998,25794.0,25793.0,1.65277752]
[1693605011058,0.017799,25794.0,25793.0,1.65565752]
[1693605011367,0.021799,25794.0,25793.0,1.70483752]
[1693605011565,0.021799,25794.0,25793.0,1.70441752]
[1693605011769,0.021799,25794.0,25793.0,1.69991752]
[1693605011974,0.021799,25794.0,25793.0,1.70171752]
[1693605012204,0.021799,25794.0,25793.0,1.70189752]
[1693605012332,0.021799,25794.0,25793.0,1.70525752]
[1693605012529,0.021799,25794.0,25793.0,1.79782591]
[1693605012734,0.021799,25794.0,25793.0,1.70477752]
[1693605012938,0.021799,25794.0,25793.0,1.70483752]
[1693605013206,0.021799,25794.0,25793.0,1.70429752]
[1693605013380,0.021799,25794.0,25793.0,1.70483752]
[1693605013589,0.021799,25794.0,25793.0,1.69847752]
[1693605013802,0.021799,25794.0,25793.0,1.79608591]
[1693605014007,0.021799,25794.0,25793.0,1.79806591]
[1693605014321,0.021799,25794.0,25793.0,1.79956591]
[1693605014553,0.021799,25794.0,25793.0,1.79884591]
[1693605014757,0.021799,25794.0,25793.0,1.79890591]
[1693605014964,0.021799,25794.0,25793.0,1.79896591]
[1693605015172,0.021799,25794.0,25793.0,1.79944591]
[1693605015354,0.021799,25794.0,25793.0,1.80100591]
[1693605015556,0.021799,25794.0,25793.0,1.80262591]
[1693605015761,0.021799,25794.0,25793.0,2.39873481]
[1693605015987,0.021799,25794.0,25793.0,2.40173481]
[1693605016139,0.021799,25794.0,25793.0,2.40089481]
[1693605016338,0.021799,25794.0,25793.0,2.40323481]
[1693605016547,0.021799,25794.0,25793.0,1.9454985]
[1693605016774,0.0197,25796.0,25795.0,0.02]
[1693605016976,0.0197,25796.0,25795.0,1.23739752]
[1693605017201,0.0197,25796.0,25795.0,1.66627752]
[1693605017406,0.0197,25796.0,25795.0,1.66615752]
[1693605017724,0.0197,25796.0,25795.0,1.66603752]
[1693605017949,0.0217,25796.0,25795.0,1.69443752]
[1693605018137,0.0217,25796.0,25795.0,1.69413752]
[1693605018342,0.013777,25796.0,25795.0,1.69131752]
[1693605018539,0.013777,25796.0,25795.0,1.68771752]
[1693605018758,0.013777,25796.0,25795.0,1.79949812]
[1693605018925,0.013777,25796.0,25795.0,1.79937812]
[1693605019129,0.010195,25796.0,25795.0,1.77313812]
[1693605019303,0.010195,25796.0,25795.0,1.86834651]
[1693605019504,0.013195,25796.0,25795.0,1.91062651]
[1693605019755,0.013195,25796.0,25795.0,1.91194651]
[1693605019959,0.013195,25796.0,25795.0,1.91098651]
[1693605020178,0.014879,25796.0,25795.0,1.82092591]
[1693605020391,0.014879,25796.0,25795.0,1.82080591]
[1693605020647,0.012879,25796.0,25795.0,1.78174591]
[1693605020823,0.012879,25796.0,25795.0,1.78192591]
[1693605021028,0.014816,25796.0,25795.0,1.81958591]
[1693605021232,0.014816,25796.0,25795.0,1.81976591]
[1693605021436,0.014816,25796.0,25795.0,1.81748591]
[1693605021636,0.014816,25796.0,25795.0,1.81712591]
[1693605021829,0.014816,25796.0,25795.0,1.81754591]
[1693605022033,0.014816,25796.0,25795.0,1.81868591]
[1693605022243,0.014816,25796.0,25795.0,1.81748591]
[1693605022461,0.014816,25796.0,25795.0,1.81904591]
[1693605022781,0.014816,25796.0,25795.0,1.81802591]
[1693605022982,0.014816,25796.0,25795.0,1.81826591]
[1693605023137,0.014816,25796.0,25795.0,1.81574591]
[1693605023519,1e-08,25796.0,25795.0,1.81152509]
[1693605023665,1e-08,25796.0,25795.0,1.81056509]
[1693605023831,1e-08,25796.0,25795.0,1.81284509]
[1693605024025,1e-08,25796.0,25795.0,1.81158509]
[1693605024228,1e-08,25796.0,25795.0,1.80948854]
[1693605024487,1e-08,25796.0,25795.0,1.81014854]
[1693605024710,1e-08,25796.0,25795.0,1.81200854]
[1693605025011,1e-08,25796.0,25795.0,1.95047507]
[1693605025145,1e-08,25796.0,25795.0,1.95053507]
[1693605025358,1e-08,25796.0,25795.0,1.95035507]
[1693605025553,1e-08,25796.0,25795.0,1.95041507]
[1693605025826,1e-08,25796.0,25795.0,1.95683507]
[1693605026029,1e-08,25796.0,25795.0,1.95689507]
[1693605026256,1e-08,25796.0,25795.0,1.81689014]
[1693605026462,1e-08,25796.0,25795.0,1.81785014]
[1693605026668,1e-08,25796.0,25795.0,1.95529667]
[1693605026872,1e-08,25796.0,25795.0,1.95517667]
[1693605027092,1e-08,25796.0,25795.0,1.81683014]
[1693605027267,1e-08,25796.0,25795.0,1.95535667]
[1693605027473,1e-08,25796.0,25795.0,1.95559667]
[1693605027678,1e-08,25796.0,25795.0,1.95565667]
[1693605027996,1e-08,25796.0,25795.0,1.95577667]
[1693605028205,1e-08,25796.0,25795.0,1.95715667]
[1693605028533,1e-08,25796.0,25795.0,1.95721667]
[1693605028721,1e-08,25796.0,25795.0,2.41619721]
[1693605028895,1e-08,25796.0,25795.0,2.41655721]
[1693605029099,1e-08,25796.0,25795.0,2.4716658]
[1693605029304,1e-08,25796.0,25795.0,2.4731058]
[1693605029476,1e-08,25796.0,25795.0,2.4749058]
[1693605029675,1e-08,25796.0,25795.0,2.4733458]
[1693605030080,0.16000564,25800.0,25799.0,0.4871]
[1693605030286,0.16000564,25800.0,25799.0,1.31468678]
[1693605030491,0.1594,25800.0,25799.0,1.31468678]
[1693605031184,0.1644,25800.0,25799.0,1.38410678]
[1693605031412,0.1644,25800.0,25799.0,1.31468678]
[1693605032226,0.1644,25800.0,25799.0,1.38410678]
[1693605032430,0.1734,25800.0,25799.0,1.38744678]
[1693605032636,0.1734,25800.0,25799.0,1.31568678]
[1693605032882,0.1734,25800.0,25799.0,1.60464001]
[1693605033220,0.1734,25800.0,25799.0,1.31568678]
[1693605033327,0.1734,25800.0,25799.0,1.56121868]
[1693605034407,0.1734,25800.0,25799.0,1.62679868]
[1693605034632,0.1734,25800.0,25799.0,1.62649868]
[1693605034753,0.1734,25800.0,25799.0,1.56121868]
[1693605037000,0.1734,25800.0,25799.0,1.62895868]
[1693605037202,0.1734,25800.0,25799.0,1.62841868]
[1693605037396,0.1734,25800.0,25799.0,1.62811868]
[1693605037598,0.1734,25800.0,25799.0,1.38432678]
[1693605037807,0.1734,25800.0,25799.0,1.38408678]
[1693605037964,0.1734,25800.0,25799.0,1.38402678]
[1693605038160,0.1734,25800.0,25799.0,1.6520083]
[1693605038366,0.1734,25800.0,25799.0,1.6507483]
[1693605038602,0.1734,25800.0,25799.0,1.6489483]
[1693605038960,0.1734,25800.0,25799.0,1.5837283]
[1693605040592,0.1734,25800.0,25799.0,1.31568678]
[1693605041674,0.1734,25800.0,25799.0,1.71152519]
[1693605041895,0.1734,25800.0,25799.0,1.90527519]
[1693605042258,0.1734,25800.0,25799.0,1.60177925]
[1693605042453,0.1734,25800.0,25799.0,1.9093943]
[1693605043052,0.1734,25800.0,25799.0,1.60177925]
[1693605043252,0.1734,25800.0,25799.0,1.90291086]
[1693605046147,0.1734,25800.0,25799.0,1.99293734]
[1693605046347,0.1734,25800.0,25799.0,1.97293734]
[1693605049197,0.18997174,25800.0,25799.0,1.97293734]
[1693605050020,0.19031014,25800.0,25799.0,1.97293734]
[1693605050437,0.19031014,25800.0,25799.0,1.50643843]
[1693605051483,0.21031014,25800.0,25799.0,1.18530682]
[1693605051689,0.21031014,25800.0,25799.0,1.03417925]
[1693605051885,0.21031014,25800.0,25799.0,0.94183678]
[1693605052125,0.21031014,25800.0,25799.0,0.001]
[1693605052329,0.21031014,25800.0,25796.0,0.32512204]
[1693605052330,0.03691014,25797.0,25796.0,0.09234247]
[1693605052558,0.03691014,25794.0,25793.0,0.13905351]
[1693605052760,0.03691014,25794.0,25792.0,0.4169676]
[1693605052761,0.03691014,25793.0,25792.0,0.09270813]
[1693605052914,0.03691014,25792.0,25791.0,0.09270813]
[1693605053121,0.03691014,25792.0,25790.0,0.09270813]
[1693605053122,0.03691014,25791.0,25790.0,0.09270813]
[1693605053330,0.12520446,25791.0,25790.0,0.47979491]
[1693605053480,0.12520446,25791.0,25789.0,0.13905351]
[1693605053481,0.03691014,25791.0,25789.0,0.23176164]
[1693605053677,0.12520446,25791.0,25789.0,0.23176164]
[1693605053934,0.03691014,25790.0,25789.0,0.09270813]
[1693605054348,0.03691014,25789.0,25788.0,0.09270813]
[1693605055484,0.03691014,25789.0,25787.0,0.28409532]
[1693605055633,0.03691014,25788.0,25786.0,0.30581893]
[1693605056041,0.03691014,25788.0,25786.0,0.1205]
[1693605056237,0.011,25789.0,25786.0,0.1205]
[1693605056238,0.03691014,25787.0,25786.0,0.1205]
[1693605057017,0.03691014,25787.0,25786.0,0.4205]
[1693605058104,0.03691014,25787.0,25786.0,0.4615]
[1693605058302,0.03691014,25787.0,25786.0,0.4425]
[1693605058504,0.03691014,25787.0,25786.0,0.4205]
[1693605058705,0.03891014,25787.0,25786.0,0.4395]
[1693605059007,0.03991014,25787.0,25786.0,0.4615]
[1693605063190,0.03991014,25787.0,25786.0,0.4815]
[1693605064234,0.03391014,25787.0,25786.0,0.4815]
[1693605066981,0.03391014,25787.0,25786.0,0.361]
[1693605067786,0.03391014,25787.0,25786.0,0.341]
[1693605068391,0.03391014,25787.0,25786.0,0.041]
[1693605068711,0.03391014,25787.0,25786.0,0.341]
[1693605069806,0.03391014,25787.0,25786.0,0.041]
[1693605071807,0.15441014,25787.0,25786.0,0.041]
[1693605072419,0.25441014,25787.0,25786.0,0.041]
[1693605073160,0.64149692,25787.0,25786.0,0.041]
[1693605073454,0.70149692,25787.0,25786.0,0.041]
[1693605073640,1.78318492,25787.0,25786.0,0.041]
[1693605073805,1.85302492,25787.0,25786.0,0.041]
[1693605074004,1.78318492,25787.0,25786.0,0.041]
[1693605074203,1.78218492,25787.0,25786.0,0.019]
[1693605074446,0.0203384,25777.0,25776.0,0.0925138]
[1693605074663,0.0203384,25777.0,25776.0,0.38708678]
[1693605074664,0.11920446,25777.0,25776.0,0.38708678]
[1693605075072,0.11920446,25777.0,25776.0,0.77960058]
[1693605075260,0.03091014,25777.0,25776.0,0.7186343]
[1693605075491,1e-08,25777.0,25776.0,1.02808381]
[1693605075897,0.00300001,25777.0,25776.0,1.06008381]
[1693605076474,0.00300001,25777.0,25776.0,1.02853629]
[1693605076701,0.00300001,25777.0,25776.0,1.01330324]
[1693605077194,0.00500001,25777.0,25776.0,1.04830324]
[1693605077401,0.00500001,25777.0,25776.0,0.66121646]
[1693605080400,0.00500001,25777.0,25776.0,0.78171646]
[1693605092331,0.00500001,25777.0,25776.0,0.48171646]
[1693605092760,0.00500001,25777.0,25776.0,0.067]
[1693605095451,0.00500001,25777.0,25776.0,0.1595138]
[1693605096424,0.00500001,25777.0,25776.0,0.29830837]
[1693605097483,0.00500001,25777.0,25776.0,0.80148538]
[1693605098648,0.00500001,25777.0,25776.0,0.66269081]
[1693605101424,0.00500001,25777.0,25776.0,0.89433948]
[1693605102248,0.00500001,25777.0,25776.0,0.66269081]
[1693605103504,0.00500001,25777.0,25776.0,0.89433948]
[1693605104271,0.00500001,25777.0,25776.0,0.66269081]
[1693605105564,0.00500001,25777.0,25776.0,0.89433948]
[1693605106150,0.00314001,25777.0,25776.0,0.89433948]
[1693605106888,0.00314001,25777.0,25776.0,1.01483948]
[1693605107972,0.00314001,25777.0,25776.0,0.66269081]
[1693605108563,0.00314001,25777.0,25776.0,0.61653892]
[1693605109344,0.002,25777.0,25776.0,0.58453892]
[1693605110171,0.005,25777.0,25776.0,0.80285785]
[1693605110376,0.005,25777.0,25776.0,0.61753892]
[1693605110602,0.002,25777.0,25776.0,0.58453892]
[1693605110921,0.004,25777.0,25776.0,0.60453892]
[1693605111163,0.002,25777.0,25776.0,0.56953892]
[1693605111362,0.004,25777.0,25776.0,0.60553892]
[1693605111666,0.064,25777.0,25776.0,0.14882404]
[1693605111870,0.002,25777.0,25776.0,0.11282404]
[1693605112235,0.004,25777.0,25776.0,0.27499108]
[1693605112449,0.064,25777.0,25776.0,0.27499108]
[1693605112643,0.064,25777.0,25776.0,0.13582404]
[1693605113260,0.064,25777.0,25776.0,0.27499108]
[1693605113940,0.064,25777.0,25776.0,0.69051588]
[1693605114385,0.004,25777.0,25776.0,0.59769184]
[1693605115350,0.004,25777.0,25776.0,0.78301077]
[1693605116248,0.004,25777.0,25776.0,0.64384373]
[1693605117237,0.004,25777.0,25776.0,0.8754924]
[1693605118305,0.004,25777.0,25776.0,0.69017347]
[1693605126232,0.004,25777.0,25776.0,0.87624426]
[1693605127052,0.004,25777.0,25776.0,0.99674426]
[1693605127211,0.004,25777.0,25776.0,0.76509559]
[1693605131892,0.004,25777.0,25776.0,0.90466228]
[1693605132394,0.004,25777.0,25776.0,0.71859149]
[1693605132817,0.004,25777.0,25776.0,0.90466228]
[1693605135326,0.39108678,25777.0,25776.0,0.78416228]
[1693605135534,0.51158678,25777.0,25776.0,0.043]
[1693605135935,0.39108678,25777.0,25776.0,0.043]
[1693605136113,0.61158678,25777.0,25776.0,0.043]
[1693605136554,0.08,25775.0,25773.0,0.11286168]
[1693605136752,0.08,25775.0,25773.0,0.019796]
[1693605137850,0.38708678,25774.0,25773.0,0.019796]
[1693605138076,0.50758678,25774.0,25773.0,0.019796]
[1693605138271,1.08956778,25774.0,25773.0,0.019796]
[1693605139189,1.08956778,25774.0,25773.0,0.044796]
[1693605139631,1.08956778,25774.0,25773.0,0.019796]
[1693605139760,0.53558678,25774.0,25773.0,0.049796]
[1693605140263,0.53558678,25774.0,25773.0,0.022796]
[1693605140667,0.56158678,25774.0,25773.0,0.024796]
[1693605141269,0.054,25774.0,25773.0,0.024796]
[1693605148282,0.134,25774.0,25773.0,0.024796]
[1693605154257,0.114,25774.0,25773.0,0.024796]
[1693605154446,0.074,25774.0,25773.0,0.024796]
[1693605154854,0.054,25774.0,25773.0,0.024796]
[1693605159179,0.44108678,25774.0,25773.0,0.024796]
[1693605159378,0.56158678,25774.0,25773.0,0.024796]
[1693605159688,1.14356778,25774.0,25773.0,0.024796]
[1693605160255,1.24356778,25774.0,25773.0,0.024796]
[1693605163587,1.30356778,25774.0,25773.0,0.024796]
[1693605163790,1.88554878,25774.0,25773.0,0.024796]
[1693605165372,2.46752978,25774.0,25773.0,0.024796]
[1693605174281,2.87462978,25774.0,25773.0,0.024796]
[1693605177521,2.29264878,25774.0,25773.0,0.024796]
[1693605178138,2.26464878,25774.0,25773.0,0.021796]
[1693605178324,2.30064878,25774.0,25773.0,0.022796]
[1693605178529,2.27464878,25774.0,25773.0,0.020796]
[1693605178733,2.31064878,25774.0,25773.0,0.024796]
[1693605191176,1.90354878,25774.0,25773.0,0.024796]
[1693605191417,1.32156778,25774.0,25773.0,0.024796]
[1693605193091,0.61908678,25774.0,25773.0,0.024796]
[1693605196245,0.51908678,25774.0,25773.0,0.024796]
[1693605196478,0.55908678,25774.0,25773.0,0.024796]
[1693605196718,0.45908678,25774.0,25773.0,0.024796]
[1693605196959,0.072,25774.0,25773.0,0.32105763]
[1693605197223,0.072,25774.0,25773.0,1.55982419]
[1693605197752,0.071935,25774.0,25773.0,1.55982419]
[1693605198024,0.03587,25774.0,25773.0,1.64875938]
[1693605198303,0.02,25781.0,25773.0,1.64975938]
[1693605198623,0.02,25781.0,25777.0,0.1205]
[1693605198843,0.02,25781.0,25778.0,0.27533471]
[1693605199576,0.23236645,25783.0,25778.0,0.1205]
[1693605199811,0.61945323,25783.0,25778.0,0.27533471]
[1693605200047,0.71945323,25783.0,25778.0,0.27533471]
[1693605200288,0.50003336,25783.0,25778.0,0.27533471]
[1693605200537,0.48003336,25783.0,25778.0,0.27533471]
[1693605200773,0.036,25781.0,25778.0,0.27733471]
[1693605201012,0.48003336,25783.0,25778.0,0.1205]
[1693605201254,0.42308678,25783.0,25778.0,0.27733471]
[1693605201491,0.029,25781.0,25778.0,0.27733471]
[1693605201724,0.029,25781.0,25778.0,0.1225]
[1693605201929,0.42308678,25783.0,25778.0,0.1225]
[1693605202189,0.46008678,25783.0,25778.0,0.28033471]
[1693605202745,0.42308678,25783.0,25778.0,0.27733471]
[1693605202985,0.037,25781.0,25778.0,0.1255]
[1693605203491,0.037,25781.0,25778.0,0.1235]
[1693605203730,0.073,25781.0,25778.0,0.1255]
[1693605204394,0.073,25781.0,25778.0,0.1225]
[1693605204395,0.036,25781.0,25778.0,0.1225]
[1693605204629,0.036,25781.0,25778.0,0.1255]
[1693605205145,0.036,25781.0,25778.0,0.1225]
[1693605205585,0.073,25781.0,25778.0,0.1255]
[1693605208768,0.46008678,25781.0,25778.0,0.005]
[1693605210184,0.38708678,25780.0,25778.0,0.005]
[1693605210985,0.38708678,25780.0,25778.0,0.002]
[1693605211186,0.42408678,25780.0,25778.0,0.003]
[1693605211631,0.46008678,25780.0,25778.0,0.005]
[1693605211948,1.04193278,25780.0,25778.0,0.005]
[1693605212148,2.32613778,25780.0,25778.0,0.005]
[1693605212352,2.20563778,25780.0,25778.0,0.005]
[1693605215041,2.22563778,25780.0,25778.0,0.005]
[1693605216672,0.1205,25779.0,25778.0,0.005]
[1693605216845,1.71132278,25779.0,25778.0,0.005]
[1693605217608,1.71132278,25779.0,25778.0,0.002]
[1693605217835,1.74832278,25779.0,25778.0,0.005]
[1693605218041,1.89172278,25779.0,25778.0,0.003]
[1693605219708,1.92772278,25779.0,25778.0,0.005]
[1693605221663,2.97669078,25779.0,25778.0,0.005]
[1693605226065,2.95669078,25779.0,25778.0,0.005]
[1693605226272,2.97669078,25779.0,25778.0,0.005]
[1693605231593,3.21937642,25779.0,25778.0,0.005]
[1693605232379,3.2193766,25779.0,25778.0,0.005]
[1693605234016,2.6375086,25779.0,25778.0,0.005]
[1693605234753,2.39482278,25779.0,25778.0,0.005]
[1693605235567,2.63750909,25779.0,25778.0,0.005]
[1693605237555,2.71280909,25779.0,25778.0,0.005]
[1693605237765,2.71628909,25779.0,25778.0,0.005]
[1693605237995,2.71778909,25779.0,25778.0,0.005]
[1693605238175,3.28729709,25779.0,25778.0,0.005]
[1693605238383,3.28663709,25779.0,25778.0,0.005]
[1693605238629,3.28609709,25779.0,25778.0,0.005]
[1693605238838,3.28561709,25779.0,25778.0,0.005]
[1693605239049,3.21937709,25779.0,25778.0,0.005]
[1693605239276,3.31232367,25779.0,25778.0,0.005]
[1693605241340,3.29232367,25779.0,25778.0,0.005]
[1693605241752,3.31232367,25779.0,25778.0,0.005]
[1693605243583,3.29232367,25779.0,25778.0,0.005]
[1693605243783,3.31232367,25779.0,25778.0,0.005]
[1693605244463,3.29232367,25779.0,25778.0,0.005]
[1693605244708,3.31232367,25779.0,25778.0,0.005]
[1693605247228,3.45174354,25779.0,25778.0,0.005]
[1693605248254,3.43174354,25779.0,25778.0,0.005]
[1693605248458,3.45174354,25779.0,25778.0,0.005]
[1693605248661,3.48265743,25779.0,25778.0,0.005]
[1693605248857,2.70647554,25779.0,25778.0,0.005]
[1693605249088,1.28281967,25779.0,25778.0,0.005]
[1693605249282,0.87571967,25779.0,25778.0,0.005]
[1693605249694,0.78277309,25779.0,25778.0,0.005]
[1693605251277,0.79571967,25779.0,25778.0,0.005]
[1693605251488,0.78277309,25779.0,25778.0,0.005]
[1693605251899,0.54008678,25779.0,25778.0,0.005]
[1693605253471,0.63303336,25779.0,25778.0,0.005]
[1693605253814,0.54008678,25779.0,25778.0,0.005]
[1693605254216,0.63303336,25779.0,25778.0,0.005]
[1693605256566,0.61303336,25779.0,25778.0,0.005]
[1693605263929,0.6130855,25779.0,25778.0,0.005]
[1693605264778,1.1949535,25779.0,25778.0,0.005]
[1693605265410,1.7768215,25779.0,25778.0,0.005]
[1693605265608,1.91631958,25779.0,25778.0,0.005]
[1693605265810,2.49818758,25779.0,25778.0,0.005]
[1693605266073,2.61868758,25779.0,25778.0,0.005]
[1693605267900,2.52568886,25779.0,25778.0,0.005]
[1693605268295,3.1187863,25779.0,25778.0,0.005]
[1693605268727,3.36147225,25779.0,25778.0,0.005]
[1693605269538,3.43257225,25779.0,25778.0,0.005]
[1693605269834,3.43119225,25779.0,25778.0,0.005]
[1693605270050,3.43167225,25779.0,25778.0,0.005]
[1693605270256,3.43131225,25779.0,25778.0,0.005]
[1693605270407,3.43083225,25779.0,25778.0,0.005]
[1693605270616,3.43035225,25779.0,25778.0,0.005]
[1693605270819,3.43005225,25779.0,25778.0,0.005]
[1693605271029,3.32315372,25779.0,25778.0,0.005]
[1693605271248,3.32129372,25779.0,25778.0,0.005]
[1693605271498,3.25409372,25779.0,25778.0,0.005]
[1693605273743,3.48659052,25779.0,25778.0,0.005]
[1693605274154,3.25409372,25779.0,25778.0,0.005]
[1693605275193,3.48659052,25779.0,25778.0,0.005]
[1693605276243,3.25409372,25779.0,25778.0,0.005]
[1693605279303,3.22197417,25779.0,25778.0,0.005]
[1693605279504,3.25455959,25779.0,25778.0,0.005]
[1693605279711,3.22197417,25779.0,25778.0,0.005]
[1693605280150,3.25448865,25779.0,25778.0,0.005]
[1693605280310,3.22197417,25779.0,25778.0,0.005]
[1693605281564,3.03597673,25779.0,25778.0,0.005]
[1693605281927,3.25414246,25779.0,25778.0,0.005]
[1693605282319,3.22159912,25779.0,25778.0,0.005]
[1693605282542,3.25413531,25779.0,25778.0,0.005]
[1693605282953,3.22159912,25779.0,25778.0,0.005]
[1693605283160,3.25401105,25779.0,25778.0,0.005]
[1693605283290,3.22159912,25779.0,25778.0,0.005]
[1693605283490,3.25401164,25779.0,25778.0,0.005]
[1693605283711,3.25401275,25779.0,25778.0,0.005]
[1693605288909,3.25412382,25779.0,25778.0,0.005]
[1693605297177,3.27412382,25779.0,25778.0,0.005]
[1693605297459,3.88373869,25779.0,25778.0,0.005]
[1693605297678,0.4671,25774.0,25773.0,0.019796]
[1693605297892,3.81761711,25774.0,25773.0,0.019796]
[1693605298106,4.19441711,25774.0,25773.0,0.019796]
[1693605298324,4.06001806,25774.0,25773.0,0.019796]
[1693605298544,4.06247806,25774.0,25773.0,0.019796]
[1693605298791,4.06661806,25774.0,25773.0,0.019796]
[1693605299014,4.06277806,25774.0,25773.0,0.019796]
[1693605299238,4.09865806,25774.0,25773.0,0.022796]
[1693605299464,4.31218308,25774.0,25773.0,0.022796]
[1693605299676,4.31818308,25774.0,25773.0,0.022796]
[1693605299895,4.31824308,25774.0,25773.0,0.022796]
[1693605300119,4.31926308,25774.0,25773.0,0.022796]
[1693605300328,4.32142308,25774.0,25773.0,0.022796]
[1693605300537,4.35718308,25774.0,25773.0,0.022796]
[1693605300749,4.35814308,25774.0,25773.0,0.022796]
[1693605300958,4.35826308,25774.0,25773.0,0.022796]
[1693605301182,4.35868308,25774.0,25773.0,0.022796]
[1693605301377,4.35772308,25774.0,25773.0,0.022796]
[1693605301589,4.1723391,25774.0,25773.0,0.022796]
[1693605302008,4.1720991,25774.0,25773.0,0.022796]
[1693605302219,4.1722191,25774.0,25773.0,0.022796]
[1693605302431,4.1739591,25774.0,25773.0,0.022796]
[1693605302645,5.46105327,25774.0,25773.0,0.022796]
[1693605302869,5.76981725,25774.0,25773.0,0.022796]
[1693605303087,5.77431725,25774.0,25773.0,0.022796]
[1693605303307,5.58797327,25774.0,25773.0,0.022796]
[1693605303528,5.58737327,25774.0,25773.0,0.022796]
[1693605303685,5.58353327,25774.0,25773.0,0.022796]
[1693605303937,5.1864191,25774.0,25773.0,0.022796]
[1693605304176,4.94373315,25774.0,25773.0,0.022796]
[1693605304374,4.94391315,25774.0,25773.0,0.022796]
[1693605304546,4.94271315,25774.0,25773.0,0.022796]
[1693605304941,4.94331315,25774.0,25773.0,0.022796]
[1693605305165,5.18570706,25774.0,25773.0,0.022796]
[1693605305347,5.03549724,25774.0,25773.0,0.022796]
[1693605305589,5.03525724,25774.0,25773.0,0.022796]
[1693605305801,5.21539564,25774.0,25773.0,0.022796]
[1693605306003,5.23515564,25774.0,25773.0,0.022796]
[1693605306210,5.33921744,25774.0,25773.0,0.022796]
[1693605306417,5.33927744,25774.0,25773.0,0.022796]
[1693605306629,5.33855744,25774.0,25773.0,0.022796]
[1693605306892,5.33867744,25774.0,25773.0,0.022796]
[1693605307285,5.09592164,25774.0,25773.0,0.022796]
[1693605307504,5.09562164,25774.0,25773.0,0.022796]
[1693605307729,5.09736164,25774.0,25773.0,0.022796]
[1693605307938,5.09820164,25774.0,25773.0,0.022796]
[1693605308146,5.09928164,25774.0,25773.0,0.022796]
[1693605308355,5.00661898,25774.0,25773.0,0.022796]
[1693605308568,5.00643898,25774.0,25773.0,0.022796]
[1693605308791,5.00673898,25774.0,25773.0,0.022796]
[1693605309017,5.34437897,25774.0,25773.0,0.022796]
[1693605309228,5.34407897,25774.0,25773.0,0.022796]
[1693605309438,5.24973631,25774.0,25773.0,0.022796]
[1693605309681,5.24961631,25774.0,25773.0,0.022796]
[1693605310153,5.24931631,25774.0,25773.0,0.022796]
[1693605310423,5.24907631,25774.0,25773.0,0.022796]
[1693605310656,5.24919631,25774.0,25773.0,0.022796]
[1693605310885,5.24907631,25774.0,25773.0,0.022796]